fUSD/lending_fUSD_20240619
["ID","MTS","AMOUNT","RATE_DAILY","PERIOD"]
[329896574,1718803835323,-1688.35,0.00013698,2]
[329896575,1718803835334,-1234.9,0.00013698,2]
[329896576,1718803835344,-500.0,0.00013698,2]
[329896577,1718803835353,-844.38,0.00013698,2]
[329896578,1718803835362,-1214.89,0.00013698,2]
[329896579,1718803835372,-500.0,0.00013698,2]
[329896580,1718803835383,-1137.04,0.00013698,2]
[329896581,1718803835393,-500.0,0.00013698,2]
[329896582,1718803835402,-1596.23,0.00013698,2]
[329896583,1718803835411,-500.0,0.00013698,2]
[329896584,1718803835421,-500.0,0.00013698,2]
[329896585,1718803835433,-500.0,0.00013698,2]
[329896586,1718803835443,-500.0,0.00013698,2]
[329896587,1718803835454,-1533.69,0.00013698,2]
[329896588,1718803835463,-590.26,0.00013698,2]
[329896589,1718803835472,-1709.29,0.00013698,2]
[329896590,1718803835482,-500.0,0.00013698,2]
[329896591,1718803835491,-834.12,0.00013698,2]
[329896592,1718803835502,-1562.96,0.00013698,2]
[329896593,1718803835512,-500.0,0.00013698,2]
[329896594,1718803835522,-1860.55,0.00013698,2]
[329896595,1718803835531,-500.0,0.00013698,2]
[329896596,1718803835540,-518.87,0.00013698,2]
[329896597,1718803835549,-1358.65,0.00013698,2]
[329896598,1718803835559,-500.0,0.00013698,2]
[329896599,1718803835569,-788.68,0.00013698,2]
[329896600,1718803835578,-823.23,0.00013698,2]
[329896601,1718803835587,-500.0,0.00013698,2]
[329896602,1718803835596,-500.0,0.00013698,2]
[329896603,1718803835605,-1007.6,0.00013698,2]
[329896604,1718803835615,-500.0,0.00013698,2]
[329896605,1718803835624,-1744.38,0.00013698,2]
[329896606,1718803835633,-2556.72,0.00013698,2]
[329896607,1718803835643,-1088.39,0.00013698,2]
[329896608,1718803835652,-500.0,0.00013698,2]
[329896609,1718803835662,-500.0,0.00013698,2]
[329896610,1718803835672,-1290.88,0.00013698,2]
[329896611,1718803835681,-500.0,0.00013698,2]
[329896612,1718803835692,-500.0,0.00013698,2]
[329896613,1718803835702,-500.0,0.00013698,2]
[329896614,1718803835711,-1445.77,0.00013698,2]
[329896615,1718803835721,-500.0,0.00013698,2]
[329896616,1718803835730,-2274.02,0.00013698,2]
[329896617,1718803835740,-1086.83,0.00013698,2]
[329896618,1718803835749,-1483.21,0.00013698,2]
[329896619,1718803835759,-500.0,0.00013698,2]
[329896620,1718803835768,-500.0,0.00013698,2]
[329896621,1718803835778,-500.0,0.00013698,2]
[329896622,1718803835787,-500.0,0.00013698,2]
[329896623,1718803835798,-500.0,0.00013698,2]
[329896624,1718803835807,-692.73,0.00013698,2]
[329896625,1718803835817,-1645.88,0.00013698,2]
[329896626,1718803835827,-500.0,0.00013698,2]
[329896627,1718803835837,-500.0,0.00013698,2]
[329896628,1718803835846,-999.13,0.00013698,2]
[329896629,1718803835857,-500.0,0.00013698,2]
[329896630,1718803835866,-825.93,0.00013698,2]
[329896631,1718803835875,-566.1,0.00013698,2]
[329896632,1718803835885,-500.0,0.00013698,2]
[329896633,1718803835895,-1511.78,0.00013698,2]
[329896634,1718803835904,-732.14,0.00013698,2]
[329896635,1718803835913,-1074.96,0.00013698,2]
[329896636,1718803835923,-500.0,0.00013698,2]
[329896637,1718803835932,-500.0,0.00013698,2]
[329896638,1718803835945,-500.0,0.00013698,2]
[329896639,1718803835954,-760.96,0.00013698,2]
[329896640,1718803835964,-500.0,0.00013698,2]
[329896641,1718803835974,-501.38,0.00013698,2]
[329896642,1718803835984,-500.0,0.00013698,2]
[329896643,1718803835994,-1059.3,0.00013698,2]
[329896644,1718803836004,-692.26,0.00013698,2]
[329896645,1718803836014,-1051.5,0.00013698,2]
[329896646,1718803836024,-713.78,0.00013698,2]
[329896647,1718803836034,-500.0,0.00013698,2]
[329896648,1718803836043,-1805.25,0.00013698,2]
[329896649,1718803836056,-1046.8,0.00013698,2]
[329896650,1718803836066,-749.84,0.00013698,2]
[329896651,1718803836075,-1078.43,0.00013698,2]
[329896652,1718803836085,-1363.81,0.00013698,2]
[329896653,1718803836095,-580.3,0.00013698,2]
[329896654,1718803836105,-549.12978656,0.00013698,2]
[329896655,1718803836115,-1683.94,0.00013698,2]
[329896656,1718803836124,-500.0,0.00013698,2]
[329896657,1718803836135,-516.24,0.00013698,2]
[329896658,1718803836145,-618.38,0.00013698,2]
[329896659,1718803836155,-760.3,0.00013698,2]
[329896660,1718803836166,-961.36,0.00013698,2]
[329896661,1718803836175,-1223.85,0.00013698,2]
[329896662,1718803836186,-500.0,0.00013698,2]
[329896663,1718803836196,-1234.07,0.00013698,2]
[329896664,1718803836205,-500.0,0.00013698,2]
[329896665,1718803836215,-1208.43,0.00013698,2]
[329896666,1718803836225,-1484.49,0.00013698,2]
[329896667,1718803836234,-500.0,0.00013698,2]
[329896668,1718803836244,-680.42,0.00013698,2]
[329896669,1718803836254,-595.68,0.00013698,2]
[329896670,1718803836263,-622.03,0.00013698,2]
[329896671,1718803836274,-893.11,0.00013698,2]
[329896672,1718803836283,-709.19,0.00013698,2]
[329896673,1718803836293,-1653.53,0.00013698,2]
[329896674,1718803836303,-500.0,0.00013698,2]
[329896675,1718803836312,-1204.4,0.00013698,2]
[329896676,1718803836322,-535.2,0.00013698,2]
[329896677,1718803836332,-500.0,0.00013698,2]
[329896678,1718803836341,-500.0,0.00013698,2]
[329896679,1718803836351,-500.0,0.00013698,2]
[329896680,1718803836362,-1204.65,0.00013698,2]
[329896681,1718803836372,-2013.33,0.00013698,2]
[329896682,1718803836381,-500.0,0.00013698,2]
[329896683,1718803836391,-524.74,0.00013698,2]
[329896684,1718803836400,-837.11,0.00013698,2]
[329896685,1718803836410,-500.0,0.00013698,2]
[329896686,1718803836419,-558.29,0.00013698,2]
[329896687,1718803836429,-500.0,0.00013698,2]
[329896688,1718803836441,-493.38814369,0.00013698,2]
[329896689,1718803836450,-1960.72,0.00013698,2]
[329896690,1718803836459,-500.0,0.00013698,2]
[329896691,1718803836469,-599.7,0.00013698,2]
[329896692,1718803836478,-801.71,0.00013698,2]
[329896693,1718803836487,-500.0,0.00013698,2]
[329896694,1718803836497,-1371.18,0.00013698,2]
[329896695,1718803836506,-1506.08,0.00013698,2]
[329896696,1718803836516,-500.0,0.00013698,2]
[329896697,1718803836525,-500.0,0.00013698,2]
[329896698,1718803836535,-501.88558853,0.00013698,2]
[329896699,1718803836544,-843.36,0.00013698,2]
[329896700,1718803836553,-1119.45,0.00013698,2]
[329896701,1718803836563,-500.0,0.00013698,2]
[329896702,1718803836573,-1271.8,0.00013698,2]
[329896703,1718803836582,-709.32,0.00013698,2]
[329896704,1718803836591,-500.0,0.00013698,2]
[329896705,1718803836601,-500.0,0.00013698,2]
[329896706,1718803836610,-795.11,0.00013698,2]
[329896707,1718803836619,-1076.37,0.00013698,2]
[329896708,1718803836629,-1137.29,0.00013698,2]
[329896709,1718803836639,-500.0,0.00013698,2]
[329896710,1718803836648,-500.0,0.00013698,2]
[329896711,1718803836658,-500.0,0.00013698,2]
[329896712,1718803836667,-500.0,0.00013698,2]
[329896713,1718803836677,-500.0,0.00013698,2]
[329896714,1718803836687,-663.48,0.00013698,2]
[329896715,1718803836696,-696.52,0.00013698,2]
[329896716,1718803836706,-1363.76,0.00013698,2]
[329896717,1718803836715,-2252.76,0.00013698,2]
[329896718,1718803836725,-500.0,0.00013698,2]
[329896719,1718803836734,-500.0,0.00013698,2]
[329896720,1718803836743,-611.06,0.00013698,2]
[329896721,1718803836752,-500.0,0.00013698,2]
[329896722,1718803836761,-994.95,0.00013698,2]
[329896723,1718803836771,-863.54,0.00013698,2]
[329896724,1718803836781,-698.85,0.00013698,2]
[329896725,1718803836791,-567.2,0.00013698,2]
[329896726,1718803836801,-708.74,0.00013698,2]
[329896727,1718803836810,-1138.59,0.00013698,2]
[329896728,1718803836820,-1992.35,0.00013698,2]
[329896729,1718803836831,-1189.94,0.00013698,2]
[329896730,1718803836841,-500.0,0.00013698,2]
[329896731,1718803836851,-5841.99,0.00013698,2]
[329896732,1718803836861,-922.27,0.00013698,2]
[329896733,1718803836872,-500.0,0.00013698,2]
[329896734,1718803836882,-1317.5,0.00013698,2]
[329896735,1718803836891,-500.0,0.00013698,2]
[329896736,1718803836901,-500.0,0.00013698,2]
[329896737,1718803836911,-860.59,0.00013698,2]
[329896738,1718803836921,-500.0,0.00013698,2]
[329896739,1718803836930,-522.76,0.00013698,2]
[329896740,1718803836942,-1518.35,0.00013698,2]
[329896741,1718803836952,-717.92,0.00013698,2]
[329896742,1718803836961,-1759.11,0.00013698,2]
[329896743,1718803836972,-618.05,0.00013698,2]
[329896744,1718803836981,-1022.05,0.00013698,2]
[329896745,1718803836990,-883.15,0.00013698,2]
[329896746,1718803837001,-502.87,0.00013698,2]
[329896747,1718803837011,-3382.34,0.00013698,2]
[329896748,1718803837021,-1648.10338857,0.00013698,2]
[329896749,1718803837156,-1213.93749004,0.00013698,2]
[329896750,1718803837167,-334.61,0.00013698,2]
[329896751,1718803837181,-876.11960137,0.00013698,2]
[329896752,1718803837194,-2447.50952002,0.00013698,2]
[329896753,1718803837203,-508.94,0.00013698,2]
[329896754,1718803837213,-796.17,0.00013698,2]
[329896755,1718803837223,-889.03,0.00013698,2]
[329896756,1718803837232,-597.83,0.00013698,2]
[329896757,1718803837242,-826.36,0.00013698,2]
[329896758,1718803837252,-500.0,0.00013698,2]
[329896759,1718803837262,-1515.92,0.00013698,2]
[329896760,1718803837272,-500.0,0.00013698,2]
[329896761,1718803837282,-301.50623895,0.00013698,2]
[329896762,1718803837292,-1484.74,0.00013698,2]
[329896763,1718803837301,-566.52,0.00013698,2]
[329896764,1718803837311,-1098.79,0.00013698,2]
[329896765,1718803837320,-1386.96,0.00013698,2]
[329896766,1718803837329,-500.0,0.00013698,2]
[329896767,1718803837339,-656.99,0.00013698,2]
[329896768,1718803837348,-1348.02,0.00013698,2]
[329896769,1718803837358,-10198.09,0.00013698,2]
[329896770,1718803837367,-2833.19,0.00013698,2]
[329896771,1718803837377,-767.74,0.00013698,2]
[329896772,1718803837386,-764.09,0.00013698,2]
[329896773,1718803837396,-500.0,0.00013698,2]
[329896774,1718803837405,-151.0,0.00013698,2]
[329896775,1718803837414,-4697.1,0.00013698,2]
[329896776,1718803837424,-1404.99,0.00013698,2]
[329896777,1718803837434,-683.5,0.00013698,2]
[329896778,1718803837444,-2482.93,0.00013698,2]
[329896779,1718803837453,-5646.48,0.00013698,2]
[329896780,1718803837462,-500.0,0.00013698,2]
[329896781,1718803837473,-1633.29,0.00013698,2]
[329896782,1718803837482,-4277.4,0.00013698,2]
[329896783,1718803837492,-2524.25,0.00013698,2]
[329896784,1718803837501,-500.0,0.00013698,2]
[329896785,1718803837511,-7042.08,0.00013698,2]
[329896786,1718803837520,-617.82,0.00013698,2]
[329896787,1718803837530,-732.35,0.00013698,2]
[329896788,1718803837539,-2661.01,0.00013698,2]
[329896789,1718803837549,-500.0,0.00013698,2]
[329896790,1718803837558,-2322.81,0.00013698,2]
[329896791,1718803837568,-500.0,0.00013698,2]
[329896792,1718803837792,-1118.77,0.00013698,2]
[329896793,1718803837802,-740.71,0.00013698,2]
[329896794,1718803837811,-690.6,0.00013698,2]
[329896795,1718803837821,-1271.96,0.00013698,2]
[329896796,1718803837831,-500.0,0.00013698,2]
[329896797,1718803837841,-500.0,0.00013698,2]
[329896798,1718803837851,-500.0,0.00013698,2]
[329896799,1718803837861,-5726.07,0.00013698,2]
[329896800,1718803837871,-509.14534006,0.00013698,2]
[329896801,1718803837880,-2897.73,0.00013698,2]
[329896802,1718803837889,-500.0,0.00013698,2]
[329896803,1718803837899,-903.17,0.00013698,2]
[329896804,1718803837909,-2755.11,0.00013698,2]
[329896805,1718803837919,-1736.32,0.00013698,2]
[329896806,1718803837929,-2836.81,0.00013698,2]
[329896807,1718803837940,-2287.88143247,0.00013698,2]
[329896808,1718803837953,-261.62382088,0.00013698,2]
[329896809,1718803837965,-547.54474665,0.00013698,2]
[329896810,1718803837975,-82.45439549,0.00013698,2]
[329896828,1718803838691,-417.54560451,0.00013698,2]
[329896829,1718803838700,-500.0,0.00013698,2]
[329896830,1718803838710,-500.0,0.00013698,2]
[329896831,1718803838719,-362.99,0.00013698,2]
[329896832,1718803838728,-1330.86720918,0.00013698,2]
[329896884,1718803840827,-1442.07279082,0.00013698,2]
[329896886,1718803840836,-500.0,0.00013698,2]
[329896888,1718803840846,-500.0,0.00013698,2]
[329896890,1718803840855,-776.62018053,0.00013698,2]
[329896893,1718803840866,-2540.42981947,0.00013698,2]
[329896895,1718803840876,-3000.02,0.00013698,2]
[329896896,1718803840885,-101.25050674,0.00013698,2]
[329896901,1718803840916,-495.99949326,0.00013698,2]
[329896903,1718803840926,-2622.59,0.00013698,2]
[329896905,1718803840935,-500.0,0.00013698,2]
[329896907,1718803840948,-852.31935586,0.00013698,2]
[329896909,1718803840960,-167.76064414,0.00013698,2]
[329896911,1718803840969,-542.97235586,0.00013698,2]
[329896916,1718803841010,-2099.42764414,0.00013698,2]
[329896918,1718803841019,-1489.1,0.00013698,2]
[329896919,1718803841028,-481.23677446,0.00013698,2]
[329896920,1718803841040,-250.39418971,0.00013698,2]
[329896921,1718803841051,-10287.06687749,0.00013698,2]
[329896922,1718803841067,-1275.15327242,0.00013698,2]
[329896923,1718803841134,-435.75724196,0.00013698,2]
[329897155,1718803843479,-964.98446827,0.00013698,2]
[329897169,1718803843657,-1503.27717569,0.00013698,2]
[329897173,1718803843667,-500.0,0.00013698,2]
[329897176,1718803843676,-1317.2,0.00013698,2]
[329897179,1718803843686,-3995.97,0.00013698,2]
[329897182,1718803843696,-441.43976017,0.00013698,2]
[329897185,1718803843708,-58.56023983,0.00013698,2]
[329897187,1718803843716,-4934.65,0.00013698,2]
[329897189,1718803843725,-500.0,0.00013698,2]
[329897191,1718803843734,-1766.78976025,0.00013698,2]
[329897211,1718803843838,-2381.72023975,0.00013698,2]
[329897214,1718803843848,-500.0,0.00013698,2]
[329897217,1718803843858,-395.88113072,0.00013698,2]
[329897238,1718803844040,-104.11886928,0.00013698,2]
[329897240,1718803844049,-1342.42,0.00013698,2]
[329897242,1718803844063,-1986.34113072,0.00013698,2]
[329897349,1718803846923,-1472.53886928,0.00013698,2]
[329897350,1718803846933,-500.0,0.00013698,2]
[329897351,1718803846943,-868.47907823,0.00013698,2]
[329897352,1718803847123,-421.57059072,0.00013698,2]
[329897355,1718804030538,591.48,0.00010906,2]
[329897400,1718804614033,561.9,0.00010288,2]
[329897405,1718804801011,691.8867208,0.00025,120]
[329897411,1718804857629,4529.87910593,0.00010288,2]
[329897412,1718804857651,10000.0,0.00010288,2]
[329897413,1718804857674,10000.0,0.00010288,2]
[329897414,1718804857695,2281.87646289,0.00010288,2]
[329897429,1718805031937,-155.0,0.00011098,2]
[329897430,1718805031947,-933.26645494,0.00011099,2]
[329897431,1718805031960,-329.23063143,0.00011099,2]
[329897432,1718805031970,-10238.84800798,0.000111,2]
[329897433,1718805031979,-1000.0,0.00012206,2]
[329897434,1718805031990,-561.9,0.00012552,2]
[329897435,1718805031999,-153.61,0.00012579,2]
[329897436,1718805032008,-936.67,0.00012593,2]
[329897437,1718805032017,-250.0,0.00012623,2]
[329897438,1718805032026,-153.61,0.00012626,2]
[329897439,1718805032035,-153.61,0.00012673,2]
[329897440,1718805032044,-153.61,0.0001272,2]
[329897441,1718805032053,-153.61,0.00012767,2]
[329897442,1718805032062,-153.61,0.00012813,2]
[329897443,1718805032072,-153.61,0.0001286,2]
[329897444,1718805032081,-153.61,0.00012907,2]
[329897445,1718805032089,-153.61,0.00012954,2]
[329897446,1718805032099,-15584.03,0.00013,2]
[329897447,1718805032108,-224.99,0.00013,2]
[329897448,1718805032117,-153.61,0.00013001,2]
[329897449,1718805032126,-153.61,0.00013047,2]
[329897450,1718805032135,-153.61,0.00013094,2]
[329897451,1718805032144,-290.43,0.00013098,2]
[329897452,1718805032154,-153.61,0.00013141,2]
[329897453,1718805032163,-723.34,0.00013144,2]
[329897454,1718805032173,-423.43,0.00013144,2]
[329897455,1718805032183,-153.61,0.00013188,2]
[329897456,1718805032192,-153.61,0.00013235,2]
[329897457,1718805032202,-500.0,0.000133,4]
[329897458,1718805032211,-1000.0,0.000134,4]
[329897459,1718805032221,-495.61102152,0.00013497,2]
[329897460,1718805032231,-1500.0,0.000135,4]
[329897461,1718805032244,-332.86681415,0.0001359,2]
[329897462,1718805032253,-6240.10823128,0.00013598,2]
[329897463,1718805032263,-245000.0,0.00013598,2]
[329897464,1718805032272,-2000.0,0.000136,4]
[329897465,1718805032281,-27388.92121903,0.0001368,2]
[329897467,1718805032384,-307.8334,0.0001368,2]
[329897474,1718805032439,-1149.95135,0.0001368,2]
[329897935,1718805038456,-345.0,0.0001368,2]
[329897936,1718805038472,-1955.86500549,0.0001368,2]
[329897937,1718805038484,-3658.59974516,0.0001368,2]
[329897938,1718805038767,-412.39990406,0.0001368,2]
[329897939,1718805038779,-3646.45277639,0.0001368,2]
[329898023,1718805046563,-1273.87446051,0.0001368,2]
[329898114,1718805258005,505.71,0.00010862,2]
[329898117,1718805535654,2556.09597303,8.147e-05,2]
[329898118,1718805549514,300.00836122,0.00010862,2]
[329898119,1718805551627,1851.35880771,8.147e-05,2]
[329898120,1718805559728,2504.95039515,0.00010862,2]
[329898121,1718805559750,10000.0,0.00010862,2]
[329898122,1718805559772,10000.0,0.00010862,2]
[329898123,1718805559795,10000.0,0.00010862,2]
[329898124,1718805559818,10000.0,0.00010862,2]
[329898125,1718805560333,-150.0,0.00010862,2]
[329898126,1718805561026,-150.0,0.00010862,2]
[329898127,1718805561662,-150.0,0.00010862,2]
[329898128,1718805562965,-150.0,0.00010862,2]
[329898129,1718805563691,-150.0,0.00010862,2]
[329898130,1718805814630,10000.0,0.000105,4]
[329898131,1718805814653,10000.0,0.000105,4]
[329898132,1718805814674,10000.0,0.000105,4]
[329898133,1718805814696,9207.8820049,0.000105,4]
[329898135,1718805876369,792.1179951,0.000105,2]
[329898139,1718806122213,150.0,9.973e-05,2]
[329898140,1718806122237,150.0,9.973e-05,2]
[329898141,1718806122259,150.0,9.973e-05,2]
[329898142,1718806122282,150.0,9.973e-05,2]
[329898143,1718806122306,150.0,9.973e-05,2]
[329898144,1718806122330,150.0,9.973e-05,2]
[329898145,1718806122355,150.0,9.973e-05,2]
[329898146,1718806122375,150.0,9.973e-05,2]
[329898147,1718806122399,104.75816031,9.973e-05,2]
[329898149,1718806128011,156.47518064,9.343e-05,2]
[329898150,1718806180665,150.0,9.343e-05,2]
[329898151,1718806180687,150.0,9.343e-05,2]
[329898152,1718806180709,150.0,9.343e-05,2]
[329898153,1718806180732,150.0,9.343e-05,2]
[329898154,1718806180754,150.0,9.343e-05,2]
[329898155,1718806180779,150.0,9.343e-05,2]
[329898156,1718806180801,150.0,9.343e-05,2]
[329898157,1718806180824,150.0,9.343e-05,2]
[329898158,1718806180847,151.34681301,9.343e-05,2]
[329898159,1718806180873,150.0,9.343e-05,2]
[329898160,1718806180898,150.0,9.343e-05,2]
[329898161,1718806180923,150.0,9.343e-05,2]
[329898162,1718806180948,9843.52481936,9.343e-05,2]
[329898163,1718806180969,10000.0,9.343e-05,2]
[329898164,1718806180992,10000.0,9.343e-05,2]
[329898165,1718806181015,10000.0,9.343e-05,2]
[329898166,1718806181037,10000.0,9.343e-05,2]
[329898167,1718806181059,10000.0,9.343e-05,2]
[329898168,1718806181081,10000.0,9.343e-05,2]
[329898169,1718806181102,10000.0,9.343e-05,2]
[329898170,1718806181124,10000.0,9.343e-05,2]
[329898171,1718806181146,10000.0,9.343e-05,2]
[329898172,1718806181169,18312.0,9.343e-05,2]
[329898173,1718806184563,-250.0,9.343e-05,2]
[329898174,1718806185351,-150.0,9.343e-05,2]
[329898175,1718806185957,-150.0,9.343e-05,2]
[329898176,1718806189351,-150.0,9.342e-05,2]
[329898177,1718806190000,-150.0,9.342e-05,2]
[329898178,1718806190841,-150.0,9.342e-05,2]
[329898179,1718806191413,-150.0,9.342e-05,2]
[329898180,1718806205098,-150.0,9.295e-05,2]
[329898181,1718806205841,-150.0,9.295e-05,2]
[329898182,1718806206436,-150.0,9.295e-05,2]
[329898183,1718806211660,150.0,7.007e-05,2]
[329898184,1718806211686,150.0,7.007e-05,2]
[329898185,1718806211711,150.0,7.007e-05,2]
[329898186,1718806211736,150.0,7.007e-05,2]
[329898187,1718806211765,150.0,7.007e-05,2]
[329898188,1718806214277,-150.0,9.294e-05,2]
[329898189,1718806215004,-104.00234334,9.294e-05,2]
[329898190,1718806215030,-45.99765666,9.294e-05,2]
[329898191,1718806215563,-150.0,9.294e-05,2]
[329898192,1718806216124,-143.46694426,9.294e-05,2]
[329898226,1718806232305,-82.33009176,9.295e-05,2]
[329898228,1718806232314,-2799.733399,9.296e-05,2]
[329898229,1718806232323,-19592.60690809,9.341e-05,2]
[329898231,1718806232332,-200.18082754,9.341e-05,2]
[329898233,1718806232342,-254.00234334,9.341e-05,2]
[329898234,1718806232352,-1402.83994516,9.342e-05,2]
[329898235,1718806232361,-300.0,9.342e-05,2]
[329898236,1718806232371,-99463.11581952,9.343e-05,2]
[329898237,1718806232383,-542.6302,9.343e-05,2]
[329898238,1718806232394,-585.42979739,9.343e-05,2]
[329898239,1718806232406,-7840.61628963,9.343e-05,2]
[329898240,1718806232418,-7163.23471616,9.343e-05,2]
[329898241,1718806232429,-12049.53630709,9.343e-05,2]
[329898242,1718806232441,-3414.86143555,9.343e-05,2]
[329898243,1718806232610,-9221.26852636,9.343e-05,2]
[329898244,1718806232622,-266.95294903,9.343e-05,2]
[329898245,1718806232633,-4057.32454602,9.343e-05,2]
[329898246,1718806232645,-393.9,9.343e-05,2]
[329898249,1718806238406,-193.40745142,9.294e-05,2]
[329898250,1718806238416,-331.90154858,9.343e-05,2]
[329898251,1718806238428,-3042.51251388,9.343e-05,2]
[329898252,1718806238440,-7646.57086215,9.343e-05,2]
[329898253,1718806238452,-839.14109637,9.343e-05,2]
[329898255,1718806238598,-271160.22750133,9.343e-05,2]
[329898256,1718806238608,-150.0,9.343e-05,2]
[329898258,1718806238617,-150.0,9.343e-05,2]
[329898260,1718806238629,-420.0,0.00010276,2]
[329898262,1718806238638,-260.05177364,0.00010482,2]
[329898263,1718806238647,-537.93879391,0.00010493,2]
[329898265,1718806238657,-182.59539736,0.00010498,2]
[329898267,1718806238667,-4451.58833217,0.00010498,2]
[329898268,1718806238676,-19502.17744062,0.000105,2]
[329898270,1718806238685,-1365.16009841,0.000105,2]
[329898272,1718806238695,-939.99780051,0.000105,2]
[329898274,1718806238705,-179.39771078,0.00010685,2]
[329898276,1718806238715,-517.93,0.00010788,2]
[329898277,1718806238724,-35000.0,0.00010851,3]
[329898279,1718806238734,-348.95748955,0.00010852,2]
[329898281,1718806238743,-299.79059261,0.00010862,2]
[329898283,1718806238753,-832.46771287,0.00012,2]
[329898285,1718806238762,-20000.0,0.00012051,2]
[329898286,1718806238772,-6204.17,0.00012562,2]
[329898288,1718806238783,-250.0,0.00012588,2]
[329898290,1718806238793,-624.11,0.00012721,2]
[329898292,1718806238802,-1000.0,0.0001278,2]
[329898294,1718806238812,-517.93,0.00013052,2]
[329898295,1718806238823,-200.0,0.000133,4]
[329898297,1718806238833,-500.0,0.000134,4]
[329898299,1718806238842,-4428.221,0.00013464,2]
[329898301,1718806238852,-1192.0,0.00013464,2]
[329898302,1718806238861,-345.0,0.00013464,2]
[329898304,1718806238874,-800.0,0.000135,4]
[329898306,1718806238888,-7719.08078737,0.0001351,2]
[329898308,1718806238899,-3410.0,0.0001351,2]
[329898309,1718806238910,-498.87388707,0.0001351,2]
[329898334,1718806241089,-790.59180031,0.0001351,2]
[329898336,1718806241101,-1283.62304466,0.0001351,2]
[329898399,1718806241811,-150.0,9.294e-05,2]
[329898617,1718806243561,-5.0,9.294e-05,2]
[329898619,1718806243572,-323.39001,9.295e-05,2]
[329898628,1718806243654,-223.60999,9.295e-05,2]
[329898630,1718806243664,-6918.93500776,0.0001351,2]
[329898639,1718806243960,-1119.64228968,0.0001351,2]
[329898677,1718806246329,-172.15105615,0.000129,2]
[329898679,1718806246339,-547.80693144,0.0001351,2]
[329898680,1718806246350,-788.86945246,0.0001351,2]
[329898681,1718806246611,-520.38152683,0.0001351,2]
[329898682,1718806246623,-2145.64153742,0.0001351,2]
[329898683,1718806246633,-2752.05246,0.0001357,2]
[329898684,1718806246642,-5720.09921197,0.0001358,2]
[329898685,1718806246651,-1000.0,0.000136,4]
[329898686,1718806246661,-2752.05247,0.0001365,2]
[329898687,1718806246670,-203.94857317,0.00013668,2]
[329898688,1718806246679,-1395.43289063,0.00013678,2]
[329898689,1718806246688,-19650.96689989,0.00013678,2]
[329898690,1718806246699,-1059.88154146,0.00013678,2]
[329898692,1718806246875,-661.1649,0.00013678,2]
[329898693,1718806254082,-150.0,9.294e-05,2]
[329898694,1718806254871,-150.0,9.294e-05,2]
[329898695,1718806255987,-269.74514528,9.294e-05,2]
[329898696,1718806257706,-150.0,9.294e-05,2]
[329898697,1718806259003,-150.0,9.294e-05,2]
[329898698,1718806260053,-150.0,9.294e-05,2]
[329898699,1718806260842,-150.0,9.294e-05,2]
[329898700,1718806262541,-150.0,9.293e-05,2]
[329898701,1718806263271,-150.0,9.293e-05,2]
[329898702,1718806264323,-150.0,9.294e-05,2]
[329898703,1718806265230,-150.0,9.294e-05,2]
[329898704,1718806266022,-150.0,9.294e-05,2]
[329898705,1718806267840,-150.0,9.294e-05,2]
[329898706,1718806269688,-150.0,9.294e-05,2]
[329898707,1718806270492,-64.27603315,9.294e-05,2]
[329898708,1718806270514,-85.72396685,9.294e-05,2]
[329898709,1718806272845,-150.0,9.294e-05,2]